bitfinex-derivatives/quotes_BNBF0:USTF0_20250424
["timestamp","ask_amount","ask_price","bid_price","bid_amount"]
[1745518227455,0.29171015,598.14,595.89,1.069]
[1745518228751,1.27137093,598.05,595.89,1.069]
[1745518231459,0.29172238,598.04,595.89,1.069]
[1745518235959,0.29172238,598.04,595.9,1.156]
[1745518236260,1.27137093,598.51,595.9,1.156]
[1745518236554,0.29163803,598.03,595.9,1.156]
[1745518236957,1.27137093,598.51,595.9,1.156]
[1745518237254,1.27137093,598.58,595.9,1.156]
[1745518237458,1.27137093,598.58,595.91,0.30798255]
[1745518237653,0.29162948,598.57,595.91,0.30798255]
[1745518239160,1.27137093,598.58,595.91,0.30798255]
[1745518239658,1.27137093,598.2,595.91,0.30798255]
[1745518240058,1.27137093,598.2,595.91,1.33498255]
[1745518240257,1.27137093,598.2,595.92,0.30798255]
[1745518242061,0.29162948,598.56,595.92,0.30798255]
[1745518242062,1.27137093,598.18,595.92,0.30798255]
[1745518242459,0.29169426,598.17,595.91,1.027]
[1745518243864,0.29169426,598.17,595.91,1.964]
[1745518244965,1.56306519,598.17,595.91,1.964]
[1745518245263,1.27137093,598.17,595.91,1.964]
[1745518245463,0.29171993,598.16,595.91,1.964]
[1745518247466,1.27137093,598.14,595.91,1.964]
[1745518248765,0.29170893,598.13,595.91,1.964]
[1745518250068,1.27137093,597.84,595.91,1.964]
[1745518250863,1.27137093,597.84,595.91,2.9]
[1745518251467,0.29174561,597.83,595.91,2.9]
[1745518253080,1.27137093,597.64,595.91,2.9]
[1745518254169,1.27137093,597.64,595.92,0.30804625]
[1745518254768,1.27137093,597.64,595.91,2.9]
[1745518255476,0.29173583,597.63,595.91,2.9]
[1745518255770,1.27137093,597.52,595.91,2.9]
[1745518256670,1.27137093,597.52,595.92,0.307973]
[1745518257474,0.2917505,597.51,595.92,0.307973]
[1745518257874,0.2917505,597.51,595.91,2.9]
[1745518258074,0.2917505,597.51,595.92,0.30797345]
[1745518260179,1.27137093,597.89,595.92,0.30797345]
[1745518260582,0.29170526,597.88,595.92,0.30797345]
[1745518261380,0.29170526,597.88,595.92,1.75897345]
[1745518261575,0.29170526,597.88,595.93,0.30797345]
[1745518261976,1.27137093,597.82,595.92,1.451]
[1745518262180,1.27137093,597.82,595.93,0.30797135]
[1745518263484,0.2917126,597.81,595.93,0.30797135]
[1745518263684,0.2917126,597.81,595.94,0.30796406]
[1745518263877,0.2917126,597.81,595.93,0.30796406]
[1745518266178,1.27137093,597.82,595.93,0.30796406]
[1745518266581,0.29170771,597.8,595.93,0.30796406]
[1745518267083,1.27137093,597.74,595.93,0.30796406]
[1745518268585,1.27137093,597.74,595.93,1.23096406]
[1745518268781,1.27137093,597.74,595.94,0.30796406]
[1745518269486,0.29171137,597.73,595.94,0.30796406]
[1745518269679,1.27137093,597.66,595.94,0.30796406]
[1745518271186,1.27137093,597.66,595.93,0.923]
[1745518271483,1.27137093,597.66,595.94,0.30790333]
[1745518272388,0.29169426,597.65,595.94,0.30790333]
[1745518272888,0.29169426,597.65,595.93,0.923]
[1745518273089,0.29169426,597.65,595.94,0.30790404]
[1745518275992,0.29169426,597.65,595.93,0.923]
[1745518278188,1.27137093,597.9,595.93,0.923]
[1745518278493,0.29170893,597.64,595.93,0.923]
[1745518278791,1.27137093,597.9,595.93,0.923]
[1745518279494,0.29170893,597.89,595.93,0.923]
[1745518281895,0.29170893,597.89,595.93,1.854]
[1745518283197,0.29170893,597.89,595.93,3.084]
[1745518284099,1.27137093,597.86,595.93,3.084]
[1745518284994,1.27137093,597.86,595.93,4.364]
[1745518285999,1.27137093,597.68,595.93,4.364]
[1745518287900,1.27137093,597.8,595.93,4.364]
[1745518288501,0.29176273,597.79,595.93,4.364]
[1745518290097,1.27137093,597.63,595.93,4.364]
[1745518290601,0.29178353,597.62,595.93,4.364]
[1745518296203,1.27137093,597.72,595.93,4.364]
[1745518296699,0.29174561,597.71,595.93,4.364]
[1745518299201,1.27137093,598.31,595.93,4.364]
[1745518299604,0.29167348,598.3,595.93,4.364]
[1745518302705,1.27137093,598.22,595.93,4.364]
[1745518305210,1.27137093,598.16,595.93,4.364]
[1745518307907,1.27137093,597.58,595.93,4.364]
[1745518308608,0.29176273,597.57,595.93,4.364]
[1745518311209,1.27137093,597.59,595.93,4.364]
[1745518311610,0.29175417,597.58,595.93,4.364]
[1745518314316,1.27137093,598.09,595.93,4.364]
[1745518314517,0.29168326,597.57,595.93,4.364]
[1745518314714,1.27137093,598.09,595.93,4.364]
[1745518315618,0.29168326,598.08,595.93,4.364]
[1745518320220,1.27137093,598.16,595.93,4.364]
[1745518320621,0.2916747,598.07,595.93,4.364]
[1745518320822,1.27137093,598.16,595.93,4.364]
[1745518321723,1.27137093,598.1,595.93,4.364]
[1745518322623,0.29168203,598.09,595.93,4.364]
[1745518323226,1.27137093,598.1,595.93,4.364]
[1745518323623,0.29168203,598.08,595.93,4.364]
[1745518323818,0.29168203,598.08,595.94,0.3079896]
[1745518324324,1.27137093,597.76,595.94,0.3079896]
[1745518324522,1.27137093,597.76,595.95,0.3079896]
[1745518324720,1.27137093,597.76,595.77,0.29177496]
[1745518324920,1.27137093,597.76,595.78,0.3079896]
[1745518325820,1.27137093,597.76,595.79,0.30799082]
[1745518326019,1.27137093,597.76,595.78,0.30799082]
[1745518326324,1.27137093,597.76,595.79,0.30799082]
[1745518326525,1.27137093,597.76,595.52,0.30799082]
[1745518326722,0.29174317,597.75,595.79,1.375]
[1745518326919,0.29174317,597.75,595.8,0.30799082]
[1745518327326,1.27137093,597.58,595.79,2.809]
[1745518327521,1.27137093,597.58,595.8,0.30799099]
[1745518327921,1.27137093,597.58,595.8,2.53199099]
[1745518328124,1.27137093,597.58,595.81,0.30799099]
[1745518328725,1.27137093,597.58,595.8,2.224]
[1745518328925,1.27137093,597.58,595.81,0.3079488]
[1745518329527,0.29173461,597.57,595.81,0.3079488]
[1745518330528,0.29173461,597.57,595.8,2.224]
[1745518330828,0.29173461,597.57,595.81,0.3079377]
[1745518332227,1.27137093,597.76,595.81,0.3079377]
[1745518332529,0.29169548,597.56,595.81,0.3079377]
[1745518332727,1.27137093,597.76,595.81,0.3079377]
[1745518333628,1.27137093,598.03,595.81,0.3079377]
[1745518334625,0.29166248,598.02,595.81,0.3079377]
[1745518335230,1.27137093,598.03,595.81,0.3079377]
[1745518336532,1.27137093,597.92,595.81,1.37341912]
[1745518336732,1.27137093,597.92,595.82,0.3079377]
[1745518336925,1.27137093,597.92,595.83,0.30787075]
[1745518337129,1.27137093,597.92,595.82,0.30787075]
[1745518338432,1.27137093,597.92,595.81,1.06548142]
[1745518338631,0.29166003,597.91,595.82,0.30786896]
[1745518340734,0.29166003,597.91,595.83,0.30786896]
[1745518340931,0.29166003,597.91,595.84,0.30786896]
[1745518341131,0.29166003,597.91,595.85,0.30786896]
[1745518341331,0.29166003,597.91,595.81,1.35714145]
[1745518341332,1.27137093,597.98,595.86,0.30786896]
[1745518341736,1.27137093,597.98,595.87,0.30784208]
[1745518341934,1.27137093,597.98,595.82,0.30784208]
[1745518342235,1.27137093,598.03,595.84,1.06548142]
[1745518342535,0.29164048,597.97,595.84,1.06548142]
[1745518346438,0.29164048,597.97,595.83,0.59948256]
[1745518346940,0.29164048,597.97,595.84,0.30784208]
[1745518347136,0.29164048,597.97,595.85,0.30784208]
[1745518347341,0.29164048,597.97,595.86,0.30784208]
[1745518347540,0.29164048,597.97,595.87,0.30784208]
[1745518347739,0.29164048,597.97,595.88,0.30784208]
[1745518347938,0.29164048,597.97,595.89,0.30784208]
[1745518348141,0.29164048,597.97,595.9,0.30784208]
[1745518348340,0.29164048,597.97,595.91,0.30784208]
[1745518348537,0.27818327,597.97,595.92,0.30784208]
[1745518348743,0.27818327,597.97,595.93,0.30784208]
[1745518349042,0.27818327,597.97,596.05,1.06548142]
[1745518349342,0.27818327,597.97,596.06,0.30784208]
[1745518349542,0.27818327,597.97,596.07,0.30784208]
[1745518349741,0.27818327,597.97,596.08,0.30784208]
[1745518349937,0.27818327,597.97,596.09,0.30784208]
[1745518350140,0.27818327,597.97,596.1,0.30784208]
[1745518350340,1.27137093,598.4,596.11,0.30784208]
[1745518350540,1.27137093,598.4,596.12,0.30784208]
[1745518350741,0.29147682,597.96,596.06,0.30784208]
[1745518351043,1.27137093,598.4,596.07,0.30784208]
[1745518351241,1.27137093,598.4,596.08,0.30784208]
[1745518351441,1.27137093,598.72,596.09,0.30784208]
[1745518351638,1.27137093,598.72,596.1,0.30784208]
[1745518351842,1.27137093,598.72,596.11,0.30784208]
[1745518352038,1.27137093,598.72,596.12,0.30768598]
[1745518352242,1.27137093,598.72,596.13,0.30768598]
[1745518352442,1.27137093,598.72,596.14,0.30768598]
[1745518352643,1.27137093,598.72,596.15,0.30768598]
[1745518352843,1.27137093,598.6,596.16,0.30768598]
[1745518353045,1.27137093,598.6,596.17,0.30768598]
[1745518353245,1.27137093,598.6,596.18,0.30768598]
[1745518353444,1.27137093,598.6,596.19,0.30768598]
[1745518353646,0.29146095,598.59,596.06,1.06548142]
[1745518353846,0.29146095,598.59,596.2,0.30768183]
[1745518354047,0.29146095,598.59,596.07,0.30768183]
[1745518354247,0.29146095,598.59,596.08,0.30768183]
[1745518354447,0.29146095,598.59,596.09,0.30768183]
[1745518354646,0.29146095,598.59,596.1,0.30768183]
[1745518354848,0.29146095,598.59,596.11,0.30768183]
[1745518355047,0.29146095,598.59,596.04,1.35694237]
[1745518355248,0.29146095,598.59,596.05,0.30767168]
[1745518355547,0.29146095,598.59,596.06,0.30767168]
[1745518355747,0.29146095,598.59,596.07,0.30767168]
[1745518356047,0.29146095,598.59,596.08,0.30767168]
[1745518356247,0.29146095,598.59,596.09,0.30767168]
[1745518356448,0.29146095,598.59,596.1,0.30767168]
[1745518356744,0.29146095,598.59,596.11,0.30767168]
[1745518356947,0.29146095,598.59,596.12,0.30767168]
[1745518357247,0.29146095,598.59,596.13,0.30767168]
[1745518357443,0.29146095,598.59,596.14,0.30767168]
[1745518357647,0.29146095,598.59,596.15,0.30767168]
[1745518357947,0.29146095,598.59,596.16,0.30767168]
[1745518358248,0.29146095,598.59,596.17,0.30767518]
[1745518358549,0.29146095,598.59,596.18,0.30767518]
[1745518358743,0.29146095,598.59,596.19,0.30767518]
[1745518358946,0.29146095,598.59,596.2,0.30767518]
[1745518359148,0.29146095,598.59,596.21,0.30767518]
[1745518359343,1.27137093,598.71,596.22,0.30767518]
[1745518359548,0.2914402,598.58,596.13,0.30767518]
[1745518359747,1.27137093,598.71,596.14,0.30768087]
[1745518359945,1.27137093,598.71,596.15,0.30768087]
[1745518360145,1.27137093,598.71,596.16,0.30768087]
[1745518360344,1.27137093,598.71,596.17,0.30768087]
[1745518360649,1.27137093,598.71,596.18,0.30768087]
[1745518360850,1.27137093,598.71,596.19,0.30768087]
[1745518361150,1.27137093,598.71,596.2,0.30768087]
[1745518361350,1.27137093,598.71,596.21,0.30768087]
[1745518361550,1.27137093,598.71,596.22,0.30768087]
[1745518361852,0.2914341,598.7,596.23,0.30768087]
[1745518362150,0.2914341,598.7,596.24,0.30768087]
[1745518362346,1.27137093,598.71,596.24,0.30768087]
[1745518362653,0.29142678,598.69,596.24,0.30768087]
[1745518362847,1.27137093,598.66,596.25,0.30768647]
[1745518363052,1.27137093,598.66,596.24,0.30768647]
[1745518363352,1.27137093,598.66,596.25,0.30768647]
[1745518363547,1.27137093,598.66,596.24,0.30768647]
[1745518363747,1.27137093,598.66,596.25,0.30768647]
[1745518363951,1.27137093,598.66,596.26,0.30768647]
[1745518364253,1.27137093,598.66,596.27,0.30768647]
[1745518364449,1.27137093,598.66,596.24,0.30768647]
[1745518364649,1.27137093,598.66,596.25,0.30768647]
[1745518364949,1.27137093,598.66,596.26,0.30768647]
[1745518365153,1.27137093,598.66,596.24,0.30768647]
[1745518365356,1.27137093,598.66,596.25,0.30768647]
[1745518365548,0.29144996,598.65,596.24,0.30768647]
[1745518365747,0.29144996,598.65,596.25,0.30768647]
[1745518365951,0.29144996,598.65,596.26,0.30771496]
[1745518366147,0.29144996,598.65,596.24,0.30771496]
[1745518366354,0.29144996,598.65,596.25,0.30771496]
[1745518366556,0.29144996,598.65,596.24,0.30771496]
[1745518366849,0.29144996,598.65,596.25,0.30771496]
[1745518367054,0.29144996,598.65,596.26,0.30771496]
[1745518367254,0.29144996,598.65,596.24,0.30771496]
[1745518367455,0.29144996,598.65,596.25,0.30771496]
[1745518367651,0.29144996,598.65,596.24,0.30771496]
[1745518367856,0.29144996,598.65,596.25,0.30771496]
[1745518368056,0.29144996,598.65,596.24,0.30771496]
[1745518368258,1.27137093,598.72,596.25,0.30771496]
[1745518368458,1.27137093,598.69,596.24,0.30771496]
[1745518368658,0.2914524,598.64,596.25,0.30771496]
[1745518368959,0.2914524,598.64,596.24,0.30771496]
[1745518369159,0.2914524,598.64,596.25,0.30771496]
[1745518369454,0.2914524,598.64,596.26,0.30771496]
[1745518369659,0.2914524,598.64,596.27,0.30771496]
[1745518369859,0.2914524,598.64,596.28,0.30771496]
[1745518370058,0.2914524,598.64,596.24,0.30771496]
[1745518370266,0.2914524,598.64,596.25,0.30771496]
[1745518370462,1.27137093,598.46,596.24,0.30771496]
[1745518370655,1.27137093,598.46,596.25,0.30771496]
[1745518370859,1.27137093,598.46,596.24,0.30771496]
[1745518371056,1.27137093,598.46,596.25,0.30771496]
[1745518371259,1.27137093,598.46,596.24,0.30771496]
[1745518371460,1.27137093,598.46,596.25,0.30771496]
[1745518371658,0.29148414,598.45,596.24,0.30771496]
[1745518373365,1.27137093,598.3,596.24,0.30771496]
[1745518373558,1.27137093,598.3,596.23,1.54148414]
[1745518373758,1.27137093,598.3,596.24,0.3077374]
[1745518374463,1.27137093,598.3,596.25,1.03]
[1745518374665,0.29147193,598.29,596.26,0.3077374]
[1745518375765,1.27137093,598.22,596.26,0.3077374]
[1745518376666,1.27137093,598.22,596.25,1.03]
[1745518376861,1.27137093,598.22,596.26,0.3076719]
[1745518377663,0.29147926,598.21,596.26,0.3076719]
[1745518378364,0.29147926,598.21,596.27,0.30768017]
[1745518378564,0.29147926,598.21,596.26,0.30768017]
[1745518378764,0.29147926,598.21,596.27,0.30768017]
[1745518378962,0.29147926,598.21,596.26,0.30768017]
[1745518379968,0.29147926,598.21,596.27,0.30767938]
[1745518380170,0.29147926,598.21,596.26,0.30767938]
[1745518380371,1.27137093,598.61,596.27,0.30767938]
[1745518380671,0.2914463,598.2,596.28,0.30767938]
[1745518380864,1.27137093,598.62,596.29,0.30767938]
[1745518381070,1.27137093,598.62,596.25,1.3214463]
[1745518381372,1.27137093,598.62,596.26,0.30770758]
[1745518381670,0.29144508,598.61,596.26,0.30770758]
[1745518383072,1.27137093,598.15,596.41,1.06548142]
[1745518383269,1.27137093,598.15,596.42,0.30770758]
[1745518383467,0.29148536,598.14,596.42,0.30770758]
[1745518385565,0.29148536,598.14,596.43,0.30771372]
[1745518385764,1.27137093,598.11,596.44,0.30771372]
[1745518385969,1.27137093,598.11,596.45,0.30771372]
[1745518386170,1.27137093,598.11,596.41,0.30771372]
[1745518386466,0.29149146,598.1,596.42,0.30771372]
[1745518386671,0.29149146,598.1,596.43,0.30771372]
[1745518386867,0.29149146,598.1,596.44,0.30771372]
[1745518387068,0.29149146,598.1,596.41,0.30771372]
[1745518387270,0.29149146,598.1,596.42,0.30771372]
[1745518387472,0.29149146,598.1,596.43,0.30771372]
[1745518387672,0.29149146,598.1,596.44,0.30771372]
[1745518387874,0.29149146,598.1,596.41,0.30771372]
[1745518388173,1.27137093,598.03,596.42,0.30771372]
[1745518388472,1.27137093,598.03,596.37,0.30771372]
[1745518388674,1.27137093,598.03,596.43,0.30771372]
[1745518388873,1.27137093,598.03,596.44,0.30771372]
[1745518389171,1.27137093,598.03,596.45,0.30771372]
[1745518389375,1.27137093,598.03,596.37,0.30771372]
[1745518389569,1.27137093,598.03,596.38,0.30771372]
[1745518389774,0.29152077,598.02,596.37,0.30771372]
[1745518389969,0.29152077,598.02,596.38,0.30771372]
[1745518390170,0.29152077,598.02,596.37,0.30771372]
[1745518391278,0.29152077,598.02,596.38,1.042]
[1745518391482,0.29152077,598.02,596.39,0.30771372]
[1745518391781,0.29152077,598.02,596.38,1.042]
[1745518391982,0.29152077,598.02,596.39,0.30773631]
[1745518392280,1.27137093,598.04,596.39,0.30773631]
[1745518392682,0.2915171,598.03,596.39,0.30773631]
[1745518393186,0.2915171,598.03,596.38,1.042]
[1745518393382,0.2915171,598.03,596.39,0.30769705]
[1745518394286,0.2915171,598.03,596.4,1.444]
[1745518394582,0.2915171,598.03,596.41,0.30769705]
[1745518394883,0.2915171,598.03,596.4,1.444]
[1745518395084,0.2915171,598.03,596.41,0.3077006]
[1745518396485,0.2915171,598.03,596.4,1.444]
[1745518396692,0.2915171,598.03,596.41,0.30770009]
[1745518398285,1.27137093,598.31,596.41,0.30770009]
[1745518398585,0.29145729,598.02,596.41,0.30770009]
[1745518398786,1.27137093,598.31,596.41,0.30770009]
[1745518399589,1.27137093,598.31,596.4,1.444]
[1745518399790,1.27137093,598.31,596.41,0.30769374]
[1745518401184,1.27137093,598.31,596.4,1.444]
[1745518401388,1.27137093,598.31,596.41,0.30769811]
[1745518401590,0.29145729,598.3,596.41,0.30769811]
[1745518401791,0.29145729,598.3,596.41,1.30869811]
[1745518402085,0.29145729,598.3,596.42,0.30769811]
[1745518402694,0.29145729,598.3,596.41,1.001]
[1745518402894,0.29145729,598.3,596.42,0.30769679]
[1745518404201,1.27137093,598.17,596.42,0.30769679]
[1745518404401,1.27137093,598.17,596.41,1.001]
[1745518404599,1.27137093,598.17,596.42,0.30768703]
[1745518405602,0.29147315,598.16,596.42,0.30768703]
[1745518407301,1.27137093,598.17,596.42,0.30768703]
[1745518407698,2.16309637,598.77,596.42,0.30768703]
[1745518407699,1.27137093,598.08,596.45,1.06548142]
[1745518407901,1.27137093,598.08,596.46,0.30768703]
[1745518409098,1.27137093,598.08,596.45,1.06548142]
[1745518409302,1.27137093,598.08,596.46,0.30768533]
[1745518411005,1.27137093,598.03,596.47,1.014]
[1745518411303,1.27137093,598.03,596.48,0.30768533]
[1745518413609,0.29148292,598.02,596.48,0.30768533]
[1745518415410,0.29148292,598.02,596.49,1.078]
[1745518415611,0.29148292,598.02,596.5,0.30767579]
[1745518416412,1.27137093,598.04,596.5,0.30767579]
[1745518416612,0.2914524,598.01,596.5,0.30767579]
[1745518416911,0.2914524,598.01,596.49,1.078]
[1745518417105,0.2914524,598.01,596.5,0.30765884]
[1745518418510,0.2914524,598.01,596.49,1.078]
[1745518418706,0.2914524,598.01,596.5,0.30765601]
[1745518419307,1.27137093,598.04,596.5,0.30765601]
[1745518419511,1.27137093,598.15,596.53,1.06548142]
[1745518419711,0.2914524,598.0,596.54,0.30765601]
[1745518420013,1.27137093,598.15,596.54,0.30765601]
[1745518420208,1.27137093,598.15,596.55,0.30765111]
[1745518420406,1.27137093,598.15,596.54,0.30765111]
[1745518420605,1.27137093,598.15,596.55,0.30765111]
[1745518420808,1.27137093,598.15,596.53,1.06548142]
[1745518421712,0.2914341,598.14,596.53,1.06548142]
[1745518422311,1.27137093,598.15,596.53,1.06548142]
[1745518422510,1.27137093,598.82,596.49,1.078]
[1745518422706,0.2914341,598.13,596.49,1.078]
[1745518422908,1.27137093,598.82,596.49,1.078]
[1745518423812,0.29135724,598.81,596.49,1.078]
[1745518427317,1.27137093,598.75,596.49,1.078]
[1745518428217,1.27137093,598.75,596.5,1.352]
[1745518428715,0.29136578,598.74,596.5,1.352]
[1745518429517,1.27137093,598.73,596.5,1.352]
[1745518430516,1.27137093,598.73,596.51,0.30765055]
[1745518431217,1.27137093,598.73,596.5,1.352]
[1745518431417,1.27137093,598.73,596.51,0.30765154]
[1745518431611,1.27137093,598.34,596.51,0.30765154]
[1745518433819,1.27137093,598.28,596.51,0.30765154]
[1745518434320,1.27137093,598.28,596.52,0.907]
[1745518434621,0.2914219,598.27,596.53,0.3076522]
[1745518436118,0.2914219,598.27,596.52,0.907]
[1745518436319,0.2914219,598.27,596.53,0.30765237]
[1745518437413,1.27137093,598.28,596.53,0.30765237]
[1745518437619,1.27137093,598.33,596.53,0.30765237]
[1745518437918,0.29142434,598.26,596.53,0.30765237]
[1745518438119,1.27137093,598.33,596.53,0.30765237]
[1745518438820,0.29141824,598.32,596.53,0.30765237]
[1745518439321,0.29141824,598.32,596.52,0.907]
[1745518439515,0.29141824,598.32,596.53,0.3076547]
[1745518439719,1.27137093,598.29,596.53,0.3076547]
[1745518440720,0.29142312,598.28,596.53,0.3076547]
[1745518441019,0.29142312,598.28,596.53,1.5226547]
[1745518441221,0.29142312,598.28,596.54,0.3076547]
[1745518441621,1.27137093,598.06,596.54,0.3076547]
[1745518443517,1.27137093,598.06,596.54,1.5156547]
[1745518443716,0.29144996,598.05,596.55,0.3076388]
[1745518446323,1.27137093,598.15,596.55,0.3076388]
[1745518446624,0.29140115,598.08,596.55,0.3076388]
[1745518446922,1.27137093,598.15,596.55,0.3076388]
[1745518447329,1.27137093,598.15,596.54,2.27348142]
[1745518447624,0.29138529,598.15,596.54,1.208]
[1745518449324,1.27137093,598.71,596.54,1.208]
[1745518450020,1.27137093,599.65,596.54,1.208]
[1745518450626,0.29119146,599.64,596.55,0.30751594]
[1745518453023,1.27137093,598.83,596.55,0.30751594]
[1745518453225,1.27137093,598.83,596.54,1.208]
[1745518453425,1.27137093,598.83,596.55,0.30751617]
[1745518455329,1.27137093,598.88,596.55,0.30751617]
[1745518456430,1.27137093,598.88,596.54,1.208]
[1745518456631,1.27137093,598.88,596.55,0.30748498]
[1745518457031,1.27137093,598.88,596.55,1.32848498]
[1745518457230,1.27137093,598.88,596.56,0.30748498]
[1745518458635,1.27137093,599.1,596.56,0.30748498]
[1745518459536,1.27137093,599.1,596.55,1.021]
[1745518459734,1.27137093,599.1,596.56,0.3074737]
[1745518461138,1.27137093,599.12,596.56,0.3074737]
[1745518461531,0.29122314,599.11,596.56,0.3074737]
[1745518462732,0.29122314,599.11,596.55,1.021]
[1745518462937,0.29122314,599.11,596.56,0.30748706]
[1745518463432,1.27137093,598.9,596.56,0.30748706]
[1745518464339,1.27137093,598.9,596.55,1.021]
[1745518464532,1.27137093,598.9,596.56,0.3075005]
[1745518465641,1.27137093,598.86,596.56,0.3075005]
[1745518466041,1.27137093,598.86,596.55,1.021]
[1745518466237,1.27137093,598.86,596.56,0.30750061]
[1745518467545,0.29127676,598.85,596.56,0.30750061]
[1745518467746,0.29127676,598.85,596.57,0.30749717]
[1745518467944,0.29127676,598.85,596.56,0.30749717]
[1745518468144,0.29127676,598.85,596.57,0.30749717]
[1745518468346,0.29127676,598.85,596.56,0.30749717]
[1745518468541,0.29127676,598.85,596.57,0.30749717]
[1745518468746,1.27137093,598.77,596.58,0.30749717]
[1745518468945,1.27137093,598.77,596.59,0.30749717]
[1745518469152,1.27137093,598.77,596.56,0.30749717]
[1745518469441,1.27137093,598.77,596.57,0.30750895]
[1745518469646,1.27137093,598.77,596.56,0.30750895]
[1745518469847,1.27137093,598.77,596.57,0.30750895]
[1745518470042,1.27137093,598.77,596.56,0.30750895]
[1745518471242,1.27137093,598.81,596.56,0.30750895]
[1745518473549,0.29129993,598.8,596.55,0.29129993]
[1745518473850,1.27137093,598.74,596.56,0.30750895]
[1745518475649,1.27137093,598.74,596.55,0.29129993]
[1745518475844,1.27137093,598.74,596.56,0.30751824]
[1745518476648,1.27137093,598.74,596.57,0.30751824]
[1745518476845,1.27137093,598.74,596.49,0.30751824]
[1745518477044,1.27137093,598.74,596.5,0.30751824]
[1745518477250,1.27137093,598.69,596.49,0.30751824]
[1745518477442,1.27137093,598.69,596.5,0.30751824]
[1745518477644,0.29132309,598.68,596.51,0.30751824]
[1745518478850,0.29132309,598.68,596.5,0.29132309]
[1745518479044,0.29132309,598.68,596.51,0.30752068]
[1745518479351,1.27137093,598.69,596.51,0.30752068]
[1745518479551,1.27137093,598.69,596.49,0.30752068]
[1745518479752,0.29132309,598.68,596.5,0.59884377]
[1745518480052,1.27137093,598.65,596.51,0.30752068]
[1745518482352,1.27137093,598.65,596.5,1.35680451]
[1745518482353,1.27137093,598.45,596.64,1.06548142]
[1745518482648,1.27137093,598.45,596.65,0.30752068]
[1745518482854,0.29133285,598.44,596.65,0.30752068]
[1745518483755,0.29133285,598.44,596.64,1.06548142]
[1745518483950,0.29133285,598.44,596.66,0.30752284]
[1745518484154,0.29133285,598.44,596.67,0.30752284]
[1745518484351,0.29133285,598.44,596.65,0.30752284]
[1745518484555,0.29133285,598.44,596.66,0.30752284]
[1745518484756,0.29133285,598.44,596.65,0.30752284]
[1745518485158,1.27137093,598.36,596.7,1.06548142]
[1745518485356,1.27137093,598.36,596.71,0.30752284]
[1745518486558,0.29133651,598.35,596.71,0.30752284]
[1745518487057,0.29133651,598.35,596.72,0.307522]
[1745518487253,0.29133651,598.35,596.73,0.307522]
[1745518487557,0.29133651,598.35,596.71,0.307522]
[1745518487760,0.29133651,598.35,596.75,1.06548142]
[1745518487959,0.29133651,598.35,596.76,0.307522]
[1745518488555,0.29133651,598.35,596.75,1.06548142]
[1745518488760,0.29133651,598.35,596.76,0.30753525]
[1745518489956,0.29133651,598.35,596.75,1.06548142]
[1745518490662,0.29133651,598.35,596.76,0.30754395]
[1745518491054,0.29133651,598.35,596.7,0.30754395]
[1745518491255,0.29133651,598.35,596.71,0.30754395]
[1745518491459,1.27137093,598.52,596.7,0.30754395]
[1745518491656,1.27137093,598.52,596.71,0.30754395]
[1745518491860,0.29132553,598.34,596.7,0.30754395]
[1745518492061,1.27137093,598.52,596.71,0.30754395]
[1745518492261,1.27137093,598.52,596.72,0.30754395]
[1745518492560,1.27137093,598.52,596.73,0.30754395]
[1745518492861,1.27137093,598.52,596.74,0.30754395]
[1745518493163,1.27137093,598.52,596.75,0.30754395]
[1745518493357,1.27137093,598.6,596.7,0.30754395]
[1745518493555,0.29132553,598.51,596.63,0.30754395]
[1745518493760,1.27137093,598.6,596.64,0.30754395]
[1745518493960,1.27137093,598.6,596.65,0.30754395]
[1745518494161,1.27137093,598.6,596.63,0.30754395]
[1745518494357,1.27137093,598.6,596.64,0.30754395]
[1745518494557,0.29132431,598.59,596.63,0.30754395]
[1745518494760,0.29132431,598.59,596.64,0.30754395]
[1745518495059,0.29132431,598.59,596.63,0.30754395]
[1745518495264,0.29132431,598.59,596.64,0.30754395]
[1745518495467,0.29132431,598.59,596.65,0.30754395]
[1745518495766,0.29132431,598.59,596.66,0.30754395]
[1745518495964,0.29132431,598.59,596.63,0.30754395]
[1745518496365,0.29132431,598.59,596.65,1.06548142]
[1745518496766,0.29132431,598.59,596.66,0.30753832]
[1745518497367,1.27137093,598.62,596.66,0.30753832]
[1745518497766,0.29131821,598.61,596.66,0.30753832]
[1745518498866,1.27137093,598.59,596.66,1.37301974]
[1745518499066,1.27137093,598.59,596.67,0.30753832]
[1745518499762,1.27137093,598.59,596.66,1.06548142]
[1745518500065,1.27137093,598.59,596.67,0.30754005]
[1745518500666,0.29132065,598.58,596.67,0.30754005]
[1745518501368,0.29132065,598.58,596.67,1.32654005]
[1745518501669,1.27137093,598.59,596.68,0.30754005]
[1745518501861,0.29129505,598.57,596.68,0.30754005]
[1745518502068,1.27137093,598.45,596.68,0.30754005]
[1745518502468,1.27137093,598.45,596.69,0.30750525]
[1745518502668,1.27137093,598.45,596.7,0.30750525]